Cogmind - Beta 16.1 @@@ ROGUE MODE // 2026.03.15 @ 20:03:34 Player: BlobtheGreat Result: Destroyed by as-42328 with Assembled Rifle Performance ------------- Evolutions (0) 0 Regions Visited (2) 400 Robots Destroyed (22) 110 Value Destroyed (422) 422 Prototype IDs (0) 0 Alien Tech Used (0) 0 Bonus (0) 0 TOTAL SCORE: 932 Bonus ------- None Cogmind --------- Core Integrity 0/250 Matter 297/300 Energy 96/100 System Corruption 0% Temperature Cool (8) Movement Treading (240) Ox1 Location -10/Mines Parts ------- > --- POWER (1) -------- (None) > --- PROPULSION (2) --- Light Treads Light Treads > --- UTILITY (2) ------ High-capacity Storage Unit Light Armor Plating > --- WEAPON (2) ------- Small Laser Light Assault Rifle > --- INVENTORY (20) --- Ion Engine Light Ion Engine Light Treads Light Treads Aluminum Leg Aluminum Leg Small Storage Unit High-capacity Matter Pod (106) Seismic Detector Light Armor Plating Grenade Launcher Mining Laser Welding Torch Hammer Peak State ------------ > --- POWER ------------ Ion Engine > --- PROPULSION ------- Light Treads Light Treads > --- UTILITY ---------- High-capacity Storage Unit Light Armor Plating > --- WEAPON ----------- Assault Rifle Assault Rifle > --- INVENTORY -------- Light Ion Engine Light Treads Light Treads Aluminum Leg Aluminum Leg Small Storage Unit High-capacity Matter Pod Seismic Detector Light Armor Plating Light Armor Plating Small Laser Mining Laser Hammer [Rating: 8] Favorites ----------- Power Ion Engine Engine Ion Engine Propulsion Light Treads Treads Light Treads Utility High-capacity Storage Unit Device Seismic Detector Storage High-capacity Storage Unit Protection Light Armor Plating Weapon Assault Rifle Energy Gun Small Laser Ballistic Gun Assault Rifle Build | -11 -10 -10 ------- Run | Yrd Mat Min Slots Evolved . | . . . Power . | . . . Propulsion . | . . . Utility . | . . . Weapon . | . . . Parts Attached 13 | 7 5 1 Power 1 | 1 . . Engine 1 | 1 . . Core . | . . . Reactor . | . . . Propulsion 3 | 2 1 . Treads 3 | 2 1 . Leg . | . . . Wheel . | . . . Hover . | . . . Flight . | . . . Utility 5 | 2 3 . Device 1 | 1 . . Storage 2 | 1 1 . Processor . | . . . Hackware . | . . . Protection 2 | . 2 . Artifact . | . . . Weapon 4 | 2 1 1 Energy Gun 1 | . 1 . Energy Cannon . | . . . Ballistic Gun 3 | 2 . 1 Ballistic Cannon . | . . . Launcher . | . . . Special Weapon . | . . . Impact Weapon . | . . . Slashing Weapon . | . . . Piercing Weapon . | . . . Special Melee Weapon . | . . . Unidentified Prototypes . | . . . Parts Lost 5 | . 3 2 Power 1 | . . 1 Propulsion 1 | . 1 . Utility 1 | . 1 . Weapon 2 | . 1 1 Highest Loss Streak 3 | . 3 1 To Critical Strikes . | . . . Average Backups 11 | 2 11 14 Power 1 | . 1 2 Propulsion 3 | 1 3 4 Utility 3 | . 3 4 Weapon 3 | . 3 3 Tool/Special . | . . . Unused Backups 12 | . . 12 Power 2 | . . 2 Propulsion 4 | . . 4 Utility 2 | . . 2 Weapon 3 | . . 3 Tool/Special 1 | . . 1 Average Slot Usage (%) 93 | . 92 99 Engine 13 | . 14 13 Treads 27 | . 27 28 Storage 14 | . 14 14 Protection 8 | . 7 14 Energy Gun 4 | . 3 14 Ballistic Gun 23 | . 24 14 Peak Build Rating 8 | 7 8 8 Average Rating 7 | 5 7 7 On Entrance 4 | . 6 8 Avg Prop Armor Cover (%) . | . . . Naked Turns . | . . . Heaviest Build 52 | 15 52 51 Greatest Support 40 | 40 40 40 Greatest Overweight (x) 2 | . 2 2 Average Overweight (x) . | . . 1 Largest Inventory Capacity 20 | 8 20 20 Average Capacity 18 | 7 19 20 Most Carried 17 | 6 17 15 Average Carried 11 | 3 11 14 Final Capacity 20 | 8 20 20 Final Carried 15 | 6 15 14 Class Distribution -------------------- 100% | Mutant Dominant Class ---------------- Mutant | -10/Materials Mutant | -10/Mines Resources | -11 -10 -10 ----------- Run | Yrd Mat Min Matter Collected 848 | 269 451 128 Remotely . | . . . Salvage Created 753 | 76 634 43 Parts 47 | 7 40 . Haulers Intercepted 2 | . 2 . Recyclers Shooed . | . . . Parts Field Recycled . | . . . Retrieved Matter . | . . . Parts Self-Destructed . | . . . Prevented . | . . . Parts Restored . | . . . Kills | -11 -10 -10 ------- Run | Yrd Mat Min Combat Hostiles Destroyed 21 | . 17 4 Guns 21 | . 17 4 Classes Destroyed 6 | 2 3 1 Tunneler 1 | 1 . . Hauler 2 | . 2 . Recycler 2 | 1 1 . Swarmer 8 | . 8 . Grunt 9 | . 9 . Assembled 4 | . . 4 Best Kill Streak 3 | 2 3 3 Combat Bots Only 3 | . 3 3 Max Kills in Single Turn 2 | 1 2 1 Gunslinging 1 | . 1 . Exploded . | . . . Melee . | . . . Uniques/NPCs Destroyed . | . . . Combat | -11 -10 -10 -------- Run | Yrd Mat Min Hostile Shots Fired 121 | . 98 23 Missed 30 | . 26 4 Hits 91 | . 72 19 Projectile 91 | . 72 19 Critical Strikes 1 | . 1 . Part Disruptions 1 | . . 1 Damage Taken 1013 | . 743 270 Core 251 | . 145 106 Absorbed by Shields . | . . . Regen/Repaired (Parts) 104 | . 104 . Core Remaining (%) 100 | 100 . . Volleys Fired 78 | 5 63 10 Largest 2 | 2 2 2 Hottest 60 | 40 60 60 Shots Fired 156 | 10 126 20 Gun 156 | 10 126 20 Cannon . | . . . Launcher . | . . . Special . | . . . Kinetic 137 | 10 117 10 Thermal 19 | . 9 10 Explosive . | . . . Electromagnetic . | . . . Robot Hit Streak 11 | 2 11 10 Robot Miss Streak 4 | 1 4 2 Penetration Max . | . . . Secondary Targets 3 | . 2 1 Max Gunslinging Chain 1 | . 1 1 Shots Hit Robots 104 | 6 84 14 Core Hits 44 | 3 32 9 Critical Kills . | . . . Critical Parts Destroyed 1 | . 1 . Critical Strikes 1 | . 1 . Destroy 1 | . 1 . Melee Attacks . | . . . Impact . | . . . Slashing . | . . . Piercing . | . . . Sneak Attacks . | . . . Combat Hostiles . | . . . Follow-up Attacks . | . . . Damage Inflicted 1353 | 79 1135 139 Guns 1294 | 79 1076 139 Cannons . | . . . Explosions . | . . . Melee . | . . . Ramming 59 | . 59 . Kinetic 1132 | 79 1004 49 Thermal 162 | . 72 90 Explosive . | . . . Electromagnetic . | . . . Impact . | . . . Slashing . | . . . Piercing . | . . . Highest Corruption . | . . . Average Corruption . | . . . Corruption Purged . | . . . Corruption Blocked . | . . . Overload Shots . | . . . Overflow Damage . | . . . Projectiles . | . . . Explosions . | . . . Melee . | . . . Knockbacks 1 | . 1 . Impact 1 | . 1 . Kinetic . | . . . Secondary . | . . . Self-Inflicted Damage . | . . . Shots . | . . . Rammed 7 | . 7 . Targets Rammed 8 | . 8 . Kicked . | . . . Crushed 1 | . 1 . Highest Temperature 90 | . 66 90 Average Temperature 21 | . 14 32 Received Heat Transfer 326 | . 306 20 Siege Activations . | . . . Martial Activations . | . . . Shielding Activations . | . . . Robots Disrupted . | . . . Combat Hostiles . | . . . Robots Corrupted . | . . . Combat Hostiles . | . . . Parts Fried . | . . . Impact Corruptions . | . . . Robots Melted . | . . . Combat Hostiles . | . . . Parts Melted . | . . . Heat Transferred 350 | . 150 200 Parts Sabotaged . | . . . Parts Stolen . | . . . Parts Stripped . | . . . Power Chain Reactions . | . . . Alert | -11 -10 -10 ------- Run | Yrd Mat Min Maximum Alert Level . | . . . Low Security (%) 100 | 100 100 100 Level 1 . | . . . Level 2 . | . . . Level 3 . | . . . Level 4 . | . . . Level 5 . | . . . High Security . | . . . Max Security . | . . . Peak Influence 115 | 5 115 15 Initial 15 | . . 15 Average 37 | . 43 2 Influence Increases 538 | 10 528 . Destroy 0b10 Robot/C 340 | . 340 . Destroy 0b10 Robot/NC 25 | 10 15 . Destroy Leader 64 | . 64 . Successful Hack 32 | . 32 . Destroy Structure 2 | . 2 . Lose Combat Pursuer 75 | . 75 . Influence Decreases 538 | 10 488 40 Entered New Map 25 | . . 25 Time Decay 483 | 10 458 15 Lost Part 30 | . 30 . Squads Dispatched 3 | . 3 . Investigation 2 | . 2 . Extermination . | . . . Reinforcement 1 | . 1 . Assault . | . . . Garrison . | . . . Intercept . | . . . Searches Triggered . | . . . Construction Impeded . | . . . Haulers Reinforced . | . . . Active Scanning Responses . | . . . Cargo Convoy Interrupts . | . . . Stealth | -11 -10 -10 --------- Run | Yrd Mat Min Distress Signals 3 | . 2 1 Communications Jammed . | . . . Distress Signals . | . . . Times Spotted 39 | . 33 6 Peak Tracking Total 6 | . 6 2 Tactical Retreats 5 | . 4 1 Traps | -11 -10 -10 ------- Run | Yrd Mat Min Traps Triggered 4 | . 4 . Indirectly . | . . . Trap Hack Attempts . | . . . Triggered . | . . . Disarmed . | . . . Reprogrammed . | . . . Reused . | . . . Traps Extracted . | . . . Installed . | . . . Triggered . | . . . Machines | -11 -10 -10 ---------- Run | Yrd Mat Min Machines Disabled . | . . . Max in Single Turn . | . . . Machines Repaired . | . . . Machines Dismantled . | . . . Machines Sabotaged . | . . . Overloaded Fab Kills . | . . . Hacking | -11 -10 -10 --------- Run | Yrd Mat Min Machines Accessed 7 | . 7 . Terminals 6 | . 6 . Fabricators . | . . . Repair Stations 1 | . 1 . Recycling Units . | . . . Scanalyzers . | . . . Garrison Access . | . . . Total Hacks 25 | . 25 . Successful 13 | . 13 . Failed 12 | . 12 . Catastrophic 2 | . 2 . Database Lockouts . | . . . Manual 16 | . 16 . Terminals 21 | . 21 . Fabricators . | . . . Repair Stations 4 | . 4 . Recycling Units . | . . . Scanalyzers . | . . . Garrison Access . | . . . Terminal Hacks 6 | . 6 . Robot Analysis 2 | . 2 . Emergency Access Points 1 | . 1 . Alert Level 2 | . 2 . Maintenance Status 1 | . 1 . Fabricator Hacks . | . . . Repair Station Hacks 2 | . 2 . Scan Component 1 | . 1 . Repair 1 | . 1 . Recycling Unit Hacks . | . . . Scanalyzer . | . . . Garrison Access Hacks . | . . . Unauthorized Hacks 5 | . 5 . Terminals 5 | . 5 . Skim 5 | . 5 . Fabricators . | . . . Repair Stations . | . . . Recycling Units . | . . . Scanalyzers . | . . . Garrison Access . | . . . Data Cores Recovered . | . . . Used . | . . . Hacking Detections 7 | . 7 . Full Trace Events . | . . . Feedback Events . | . . . Feedback Blocked . | . . . Robot Schematics Acquired . | . . . Robots Built . | . . . Authchips . | . . . Time . | . . . Total Robot Build Rating . | . . . Part Schematics Acquired . | . . . Parts Built . | . . . Authchips . | . . . Time . | . . . Total Part Build Rating . | . . . Part Studies Acquired . | . . . Parts Repaired 1 | . 1 . Time 26 | . 26 . Parts Recycled . | . . . Recycled Matter . | . . . Retrieved Matter . | . . . Retrieved Components . | . . . Parts Scanalyzed . | . . . Part Schematics Acquired . | . . . Parts Damaged . | . . . Bothacking | -11 -10 -10 ------------ Run | Yrd Mat Min Used RIF Installer . | . . . Robots Hacked . | . . . Non-combat . | . . . Combat . | . . . Robot Hacks Applied . | . . . Relay Couplers Released . | . . . Fabnet Peak Effective % . | . . . Robots Rewired . | . . . Allies Hacked . | . . . Hacks Repelled . | . . . Allies | -11 -10 -10 -------- Run | Yrd Mat Min Total Allies . | . . . Largest Group . | . . . Highest-Rated Group . | . . . Highest-Rated Ally . | . . . Total Orders . | . . . Ally Attacks . | . . . Total Damage . | . . . Kills . | . . . Allies Corrupted . | . . . Allies Melted . | . . . Intel | -11 -10 -10 ------- Run | Yrd Mat Min Active Infowar (turns) 10 | 10 . . Seismic 10 | 10 . . Robot Analysis Total 2 | . 2 . Derelict Logs Recovered 1 | . . 1 Drone Launches . | . . . Drone Recoveries . | . . . Exploration | -11 -10 -10 ------------- Run | Yrd Mat Min Turns Passed 2121 | 130 1840 151 Spaces Moved 764 | 64 649 51 Core 2 | 2 . . Treads 762 | 62 649 51 Legs . | . . . Wheels . | . . . Hover . | . . . Flight . | . . . Fastest Speed 50 | 50 160 240 Average Speed 229 | 156 235 241 Slowest Speed 320 | 160 320 320 Overloaded Moves . | . . . Propulsion Burnouts . | . . . Robots Hopped . | . . . Potential Cave-ins . | . . . Cave-ins Triggered . | . . . Exploration Rate (%) 35 | 4 88 15 Regions Visited 2 Branch Regions 1 Pre-discovered Areas 1 | . 1 . Known Exits Taken 1 | . 1 . Unknown Exits Taken 1 | 1 . . Scrap Searched 1 | . . 1 Spaces Dug . | . . . Terrain Destroyed . | . . . Melee . | . . . Projectile . | . . . AOE . | . . . Terrain Rammed . | . . . Walls Destroyed . | . . . Machines Disabled . | . . . Actions | -11 -10 -10 --------- Run | Yrd Mat Min Total 963 | 81 820 62 Wait 76 | . 76 . Move 762 | 63 648 51 Hop . | . . . Pick Up 17 | 5 12 . Fast Attach 15 | 7 8 . Attach 5 | . 4 1 Detach 2 | 1 1 . Swap . | . . . Drop . | . . . Fire 78 | 5 63 10 Melee . | . . . Ram . | . . . Kick . | . . . Crush 8 | . 8 . Escape Stasis . | . . . Rewire . | . . . Trap . | . . . Miscellaneous . | . . . Route ------- -11/Scrapyard -10/Materials (discovered 6 exits: *Mat x3 / *Min x2 / Sub) -10/Mines (discovered 1 exit: Mat) History --------- Turn | Location | Event 7 | -11/Scrapyard | Discovered new exit (range 15) 131 | -11/Scrapyard | Entered Materials 305 | -10/Materials | Discovered new exit (range 4) 311 | -10/Materials | Build established: Mutant 827 | -10/Materials | Discovered new exit (range 14) 1049 | -10/Materials | Learned location of Subcaves (-10) 1075 | -10/Materials | Identified exit to Materials 1091 | -10/Materials | Learned Storage garrison access intel 1097 | -10/Materials | Learned Storage trap positions 1099 | -10/Materials | Learned location of 1 exit from Recycling 1100 | -10/Materials | Identified exit to Mines 1104 | -10/Materials | Identified exit to Subcaves 1140 | -10/Materials | Learned location of 1 exit from Storage 1546 | -10/Materials | Core integrity fell below 50% 1547 | -10/Materials | Lost 3 parts (1n1u1w) 1746 | -10/Materials | Repaired Lgt. Treads 1971 | -10/Materials | Entered Mines 1972 | -10/Mines | Assembled infested the area 1977 | -10/Mines | Assisted by a Guerilla fighting off Assembled 2010 | -10/Mines | Learned Materials trap positions 2097 | -10/Mines | Core integrity fell below 20% 2122 | -10/Mines | Destroyed by as-42328 with Assembled Rifle Last Messages --------------- group of Assembled to figure out where they're coming from, and they're closing on this area, come on!" 02010_ Acquired derelict log, extracted data. Data stored: Materials trap records. 02013_ Assault Rifle destroyed. 02031_ as-94693 destroyed. 02084_ Searching scrap... 02084_ Found Lrg. Matter Pod. 02084_ Found 40 Matter. 02085_ Acquired 40 matter. 02091_ Acquired 50 matter. 02096_ as-63608 destroyed. 02096_ Switching to secondary target: as-53564. 02099_ as-53564 destroyed. 02102_ as-49384 destroyed. 02103_ Acquired 4 matter. 02105_ Acquired 16 matter. 02108_ Acquired 18 matter. 02114_ Ion Engine destroyed. Map ----- +----------------------------------------------------+ | ?????????????????????????????????????????????????? | | ?????????????????????????????????????????????????? | | ?????????????????????????????????????????????????? | | ?????????????????????????????????????????????????? | | ?????????????????????????????????????????????????? | | ?????????????????????????????????????????????????? | | ????????????????????????????????????????????##???? | | ???????????????????????????????????????????? ???? | | ???????????????????????????????????????????? #???? | | ???????????????????????????????????????????? #???? | | ???????????????????????????##??????????????? ????? | | ?????????????????????????## ?????????????## ????? | | ?????????????????????????; ????????????? ????? | | ???????????????????????## ?????????????? ????? | | ???????????????????????# % ??????????????# #????? | | ???????????????????????# ??????????????# #????? | | ????????????????####???# ?????????###### #????? | | ?????????????#### # ??# #?????????# % #????? | | ????????????## #?# a#?????????# ######????? | | ????????????# ??????#### #?????????? | | ????????????# !=! ? ???????# #?????????? | | ?????????????# %%%=% % ???????# ####?????????? | | ?????????????????#*! #a#???????# #????????????? | | ??????????????????# % #???????# #????????????? | | ???????????%[= ### ## #???????# #????????????? | | ????????????????????????#@#####???# #????????????? | | ????????????????????????# #??## ##???????????? | | ????????????????????????# #?## #####???????? | | ????????????????????????#### !### ##??????? | | ???????????????????????????# ##?????? | | ???????????????????????????# #?????? | | ???????????????????????????##### #?????? | | ??????????????????????????????# #?????? | | ?????????????????????????????# ### ##?????? | | ????????????????????????????# ##?## ##??????? | | ???????????????????????????# ##???#####???????? | | ?????????????????????????? #????????????????? | | ????????????????????????? ????????????????? | | ???????????????????????? ????????????????? | | ??????????????????????? ????????????????? | | ?????????????????????? ????????????????? | | ????????????????????? # ????????????????? | | ????????????????????# # ## ????????????????? | | ????????????????????## ##??## ????????????????? | | ??????????????????????##?????## ????????????????? | | ???????????????????????????????##????????????????? | | ?????????????????????????????????????????????????? | | ?????????????????????????????????????????????????? | | ?????????????????????????????????????????????????? | | ?????????????????????????????????????????????????? | +----------------------------------------------------+ Best States ------------- Heat Dissipation 25 Energy Generation 10 Energy Capacity 250 Matter Stores 300 Matter Capacity 300 Sight Range 16 Terrain Scan Density 10 Armor Coverage 150 Evasion (%) 40 Recoil Reduction 2 Item Schematics ----------------- None Robot Schematics ------------------ None Fabricated ------------ Nothing Repaired ---------- Lgt. Treads | 25% | -10/Materials Studied --------- None Alien Tech Used ----------------- None Achievements -------------- None Challenges ------------ None Game ------ Seed ZeronetBorgTerminator Manual? 0 Play Time 00:07:00 Cumulative 274.3 hours Start 2026.03.15 @ 19:57:08 End 2026.03.15 @ 20:03:34 Sessions 1 Manual Loads 0 Difficulty Rogue Special Mode None Game No. 274 Rogue 274 Adventurer 0 Explorer 0 Win Type - Total 14 Types 9/1/2/0/1/0/0/0/0/1 Lore% 89 Gallery% 77 Achievement% 64 Wizard Run 0 Options --------- Layout 1 ASCII 0 Keyboard 1 Movement Arrows Keybinds 0 Fullscreen 1 Font 24/Smallcaps Map View 50x40 Zoom Use 0% Tactical HUD 1 Map Filters NONE Filters NONE Steam 1 RUN: 1d453471-ffb2-43fd-ba31-8c7fbf8bd9a6